bitfinex-derivatives/quotes_SOLF0:USTF0_20251026
["timestamp","ask_amount","ask_price","bid_price","bid_amount"]
[1761461662869,3.95543917,193.97,193.83,2.86]
[1761461663071,4.58232348,193.96,193.83,2.86]
[1761461663370,4.58232348,193.95,193.83,2.86]
[1761461663571,4.58232348,193.94,193.83,2.86]
[1761461663772,4.58232348,193.93,193.83,2.86]
[1761461663971,4.58232348,193.92,193.83,2.86]
[1761461664173,4.58232348,193.91,193.83,2.86]
[1761461664375,4.58232348,193.9,193.83,2.86]
[1761461664574,4.58232348,193.89,193.83,2.86]
[1761461664774,4.58232348,193.88,193.83,2.86]
[1761461664975,4.58232348,193.87,193.83,2.86]
[1761461665167,3.95543917,193.97,193.83,2.86]
[1761461665373,4.58193658,193.96,193.83,2.86]
[1761461665570,4.58193658,193.95,193.83,2.86]
[1761461665770,4.58193658,193.94,193.83,2.86]
[1761461665977,4.58193658,193.93,193.83,2.86]
[1761461666181,4.58193658,193.92,193.83,2.86]
[1761461666374,4.58193658,193.91,193.83,2.86]
[1761461666678,4.58193658,193.9,193.83,2.86]
[1761461666878,4.58193658,193.89,193.83,2.86]
[1761461667178,4.58193658,193.88,193.83,2.86]
[1761461667379,4.58193658,193.87,193.83,2.86]
[1761461667581,3.95543917,193.97,193.83,2.86]
[1761461667769,4.58189625,193.96,193.83,2.86]
[1761461667976,4.58189625,193.95,193.83,2.86]
[1761461668177,4.58189625,193.94,193.83,2.86]
[1761461668378,4.58189625,193.93,193.83,2.86]
[1761461668579,4.58189625,193.92,193.83,2.86]
[1761461668780,4.58189625,193.91,193.83,2.86]
[1761461668980,4.58189625,193.9,193.83,2.86]
[1761461669182,4.58189625,193.89,193.83,2.86]
[1761461669383,4.58189625,193.88,193.83,2.86]
[1761461669572,4.58189625,193.87,193.83,2.86]
[1761461669778,4.58189625,193.86,193.83,2.86]
[1761461669972,16.68,193.98,193.83,2.86]
[1761461670179,8.54846433,193.97,193.83,2.86]
[1761461670478,8.54846433,193.96,193.83,2.86]
[1761461670678,8.54846433,193.95,193.83,2.86]
[1761461670878,8.54846433,193.94,193.83,2.86]
[1761461671080,8.54846433,193.93,193.83,2.86]
[1761461671379,8.54846433,193.92,193.83,2.86]
[1761461671580,4.58213957,193.91,193.83,2.86]
[1761461671779,4.58213957,193.9,193.83,2.86]
[1761461671980,4.58213957,193.89,193.83,2.86]
[1761461672181,4.58213957,193.88,193.83,2.86]
[1761461672380,4.58213957,193.87,193.83,2.86]
[1761461672581,4.58213957,193.86,193.83,2.86]
[1761461672786,3.96641354,193.92,193.83,2.86]
[1761461672989,4.58230402,193.91,193.83,2.86]
[1761461673187,4.58230402,193.9,193.83,2.86]
[1761461673387,4.58230402,193.89,193.83,2.86]
[1761461673586,4.58230402,193.88,193.83,2.86]
[1761461673790,4.58230402,193.87,193.83,2.86]
[1761461674089,16.68,193.98,193.83,2.86]
[1761461674388,8.54877185,193.97,193.83,2.86]
[1761461674686,4.58229426,193.96,193.83,2.86]
[1761461674887,4.58229426,193.95,193.83,2.86]
[1761461675083,4.58229426,193.94,193.83,2.86]
[1761461675276,4.58229426,193.93,193.83,2.86]
[1761461675480,4.58229426,193.92,193.83,2.86]
[1761461675688,4.58229426,193.91,193.83,2.86]
[1761461675880,4.58229426,193.9,193.83,2.86]
[1761461676082,4.58229426,193.89,193.83,2.86]
[1761461676281,4.58229426,193.88,193.83,2.86]
[1761461676582,4.58229426,193.87,193.83,2.86]
[1761461676876,3.96647759,193.97,193.83,2.86]
[1761461677079,4.58250216,193.96,193.83,2.86]
[1761461677280,4.58250216,193.95,193.83,2.86]
[1761461677487,4.58250216,193.94,193.83,2.86]
[1761461677689,4.58250216,193.93,193.83,2.86]
[1761461677885,4.58250216,193.92,193.83,2.86]
[1761461678089,4.58250216,193.91,193.83,2.86]
[1761461678389,4.58250216,193.9,193.83,2.86]
[1761461678580,4.58250216,193.89,193.83,2.86]
[1761461678783,4.58250216,193.88,193.83,2.86]
[1761461678982,4.58250216,193.87,193.83,2.86]
[1761461679180,3.96647759,193.97,193.83,2.86]
[1761461679379,4.58290296,193.96,193.83,2.86]
[1761461679583,4.58290296,193.95,193.83,2.86]
[1761461679784,4.58290296,193.94,193.83,2.86]
[1761461679988,4.58290296,193.93,193.83,2.86]
[1761461680188,4.58290296,193.92,193.83,2.86]
[1761461680488,4.58290296,193.91,193.83,2.86]
[1761461680691,4.58290296,193.9,193.83,2.86]
[1761461680891,4.58290296,193.89,193.83,2.86]
[1761461681191,4.58290296,193.88,193.83,2.86]
[1761461681393,4.58290296,193.87,193.83,2.86]
[1761461681578,3.96647759,193.95,193.83,2.86]
[1761461681579,4.58290296,193.86,193.83,2.86]
[1761461681784,3.96647759,193.93,193.83,2.86]
[1761461681988,4.58345402,193.92,193.83,2.86]
[1761461682188,4.58345402,193.91,193.83,2.86]
[1761461682387,4.58345402,193.9,193.83,2.86]
[1761461682687,4.58345402,193.89,193.83,2.86]
[1761461682888,4.58345402,193.88,193.83,2.86]
[1761461683087,4.58345402,193.87,193.83,2.86]
[1761461683286,4.58345402,193.86,193.83,2.86]
[1761461683487,3.96804741,193.97,193.83,2.86]
[1761461683689,8.55215543,193.96,193.83,2.86]
[1761461683888,8.55215543,193.95,193.83,2.86]
[1761461684188,8.55215543,193.94,193.83,2.86]
[1761461684390,8.55215543,193.93,193.83,2.86]
[1761461684591,8.55215543,193.92,193.83,2.86]
[1761461684788,4.58410802,193.91,193.83,2.86]
[1761461684989,4.58410802,193.9,193.83,2.86]
[1761461685190,4.58410802,193.89,193.83,2.86]
[1761461685394,4.58410802,193.88,193.83,2.86]
[1761461685592,4.58410802,193.87,193.83,2.86]
[1761461685790,4.58410802,193.86,193.83,2.86]
[1761461685989,3.96804658,193.92,193.83,2.86]
[1761461686194,4.83028525,193.89,193.83,2.86]
[1761461686492,8.43141067,193.88,193.83,2.86]
[1761461686689,8.43141067,193.87,193.83,2.86]
[1761461686892,8.43141067,193.86,193.83,2.86]
[1761461687095,3.84728806,193.85,193.83,2.86]
[1761461687394,4.58412057,193.88,193.83,2.86]
[1761461687593,8.43139844,193.87,193.83,2.86]
[1761461687784,3.84727787,193.86,193.83,2.86]
[1761461687982,3.84727787,193.85,193.83,2.86]
[1761461688185,4.54901344,193.88,193.83,2.86]
[1761461688386,8.39624187,193.87,193.83,2.86]
[1761461688593,3.84722843,193.86,193.83,2.86]
[1761461688795,3.84722843,193.85,193.83,2.86]
[1761461689090,4.54898442,193.88,193.83,2.86]
[1761461689295,8.39616623,193.87,193.83,2.86]
[1761461689596,3.84718181,193.86,193.83,2.86]
[1761461689892,3.84718181,193.85,193.83,2.86]
[1761461690092,4.54895622,193.88,193.83,2.86]
[1761461690392,8.39609412,193.87,193.83,2.86]
[1761461690592,3.8471379,193.86,193.83,2.86]
[1761461690783,3.8471379,193.85,193.83,2.86]
[1761461690986,4.54905021,193.88,193.83,2.86]
[1761461691190,8.39618811,193.87,193.83,2.86]
[1761461691392,3.8471379,193.86,193.83,2.86]
[1761461691593,3.8471379,193.85,193.83,2.86]
[1761461691795,4.54915901,193.88,193.83,2.86]
[1761461692092,8.39625562,193.87,193.83,2.86]
[1761461692295,3.84709661,193.86,193.83,2.86]
[1761461692490,3.84709661,193.85,193.83,2.86]
[1761461692689,4.54928485,193.89,193.83,2.86]
[1761461692994,8.39634259,193.88,193.83,2.86]
[1761461693197,8.39634259,193.87,193.83,2.86]
[1761461693494,3.84705774,193.86,193.83,2.86]
[1761461693696,3.84705774,193.85,193.83,2.86]
[1761461693896,4.54942697,193.89,193.83,2.86]
[1761461694095,8.3964484,193.88,193.83,2.86]
[1761461694294,8.3964484,193.87,193.83,2.86]
[1761461694498,3.84702143,193.86,193.83,2.86]
[1761461694797,3.84702143,193.85,193.83,2.86]
[1761461694997,4.54958842,193.89,193.83,2.86]
[1761461695195,8.39657595,193.88,193.83,2.86]
[1761461695396,8.39657595,193.87,193.83,2.86]
[1761461695598,3.84698753,193.86,193.83,2.86]
[1761461695794,3.84698753,193.85,193.83,2.86]
[1761461695994,4.54977327,193.89,193.83,2.86]
[1761461696194,3.84695598,193.88,193.83,2.86]
[1761461696396,8.39690983,193.87,193.83,2.86]
[1761461696595,3.84695598,193.86,193.83,2.86]
[1761461696895,3.84695598,193.85,193.83,2.86]
[1761461697198,4.5499811,193.89,193.83,2.86]
[1761461697501,8.39688124,193.88,193.83,2.86]
[1761461697702,8.39688124,193.87,193.83,2.86]
[1761461697897,8.39688124,193.86,193.83,2.86]
[1761461698098,3.84690014,193.85,193.83,2.86]
[1761461698297,4.55022033,193.89,193.83,2.86]
[1761461698500,8.39709529,193.88,193.83,2.86]
[1761461698697,8.39709529,193.87,193.83,2.86]
[1761461698896,8.39709529,193.86,193.83,2.86]
[1761461699096,3.84687496,193.85,193.83,2.86]
[1761461699302,4.55049679,193.89,193.83,2.86]
[1761461699504,8.3973491,193.88,193.83,2.86]
[1761461699701,8.3973491,193.87,193.83,2.86]
[1761461699901,8.3973491,193.86,193.83,2.86]
[1761461700202,3.84685231,193.85,193.83,2.86]
[1761461700500,4.83028525,193.9,193.83,2.86]
[1761461700700,8.39771461,193.89,193.83,2.86]
[1761461700998,8.39771461,193.88,193.83,2.86]
[1761461701305,8.39771461,193.87,193.83,2.86]
[1761461701505,3.84669816,193.86,193.83,2.86]
[1761461701804,3.84669816,193.85,193.83,2.86]
[1761461702004,4.55112385,193.89,193.83,2.86]
[1761461702303,8.39777631,193.88,193.83,2.86]
[1761461702506,8.39777631,193.87,193.83,2.86]
[1761461702702,3.84665246,193.86,193.83,2.86]
[1761461703003,3.84665246,193.85,193.83,2.86]
[1761461703194,4.55125793,193.89,193.83,2.86]
[1761461703398,8.39795865,193.88,193.83,2.86]
[1761461703602,8.39795865,193.87,193.83,2.86]
[1761461703805,3.84670072,193.86,193.83,2.86]
[1761461704004,3.84670072,193.85,193.83,2.86]
[1761461704204,4.55142496,193.89,193.83,2.86]
[1761461704403,8.39812865,193.88,193.83,2.86]
[1761461704605,8.39812865,193.87,193.83,2.86]
[1761461704805,3.84670369,193.86,193.83,2.86]
[1761461705004,3.84670369,193.85,193.83,2.86]
[1761461705205,4.55140819,193.89,193.83,2.86]
[1761461705406,8.39811517,193.88,193.83,2.86]
[1761461705606,8.39811517,193.87,193.83,2.86]
[1761461705806,3.84670698,193.86,193.83,2.86]
[1761461706104,3.84670698,193.85,193.83,2.86]
[1761461706308,4.55139862,193.89,193.83,2.86]
[1761461706509,8.39810964,193.88,193.83,2.86]
[1761461706707,8.39810964,193.87,193.84,1.49806157]
[1761461706910,3.84671102,193.86,193.85,2.72]
[1761461716315,8.39846162,193.86,193.85,2.72]
[1761461719720,8.39846162,193.86,193.84,1.49806157]
[1761461719920,3.84671102,193.85,193.84,4.20806157]
[1761461725526,3.84671102,193.85,193.84,2.71]
[1761461743349,4.55131862,193.88,193.84,2.71]
[1761461743538,3.83472482,193.87,193.84,2.71]
[1761461743740,3.83472482,193.86,193.84,2.71]
[1761461743936,4.55131862,193.89,193.84,2.71]
[1761461744141,8.38604344,193.88,193.84,2.71]
[1761461744346,3.83472482,193.87,193.84,2.71]
[1761461744543,3.83472482,193.86,193.84,2.71]
[1761461744750,4.55099243,193.9,193.84,2.71]
[1761461744949,8.38544167,193.89,193.84,2.71]
[1761461745246,8.38544167,193.88,193.84,2.71]
[1761461745547,3.83444924,193.87,193.84,2.71]
[1761461745747,3.83444924,193.86,193.84,2.71]
[1761461745949,4.55069515,193.9,193.84,2.71]
[1761461746252,8.38489398,193.89,193.84,2.71]
[1761461746560,8.38489398,193.88,193.84,2.71]
[1761461746743,3.83419883,193.87,193.84,2.71]
[1761461746943,3.83419883,193.86,193.84,2.71]
[1761461747139,4.55045034,193.9,193.84,2.71]
[1761461747346,8.38427018,193.89,193.84,2.71]
[1761461747545,8.38427018,193.88,193.84,2.71]
[1761461747741,3.83381984,193.87,193.84,2.71]
[1761461747947,3.83381984,193.86,193.84,2.71]
[1761461748255,4.54955862,193.9,193.84,2.71]
[1761461748555,8.3832315,193.89,193.84,2.71]
[1761461748750,8.3832315,193.88,193.84,2.71]
[1761461748956,3.83367288,193.87,193.84,2.71]
[1761461749252,3.83367288,193.86,193.84,2.71]
[1761461749454,4.54923453,193.9,193.84,2.71]
[1761461749653,8.38278082,193.89,193.84,2.71]
[1761461749853,8.38278082,193.88,193.84,2.71]
[1761461750048,3.83354629,193.87,193.84,2.71]
[1761461750250,3.83354629,193.86,193.84,2.71]
[1761461750449,4.54910483,193.9,193.84,2.71]
[1761461750651,8.38254154,193.89,193.84,2.71]
[1761461750850,8.38254154,193.88,193.84,2.71]
[1761461751157,4.83028525,193.91,193.84,2.71]
[1761461751158,3.83343671,193.87,193.84,2.71]
[1761461751352,4.54869,193.9,193.84,2.71]
[1761461751545,8.38182477,193.89,193.84,2.71]
[1761461751745,8.38182477,193.88,193.84,2.71]
[1761461751951,3.83313477,193.87,193.84,2.71]
[1761461752148,4.54868905,193.9,193.84,2.71]
[1761461752352,8.3816553,193.89,193.84,2.71]
[1761461752553,8.3816553,193.88,193.84,2.71]
[1761461752755,3.83296625,193.87,193.84,2.71]
[1761461752953,4.54848967,193.9,193.84,2.71]
[1761461753152,8.38131181,193.89,193.84,2.71]
[1761461753356,8.38131181,193.88,193.84,2.71]
[1761461753558,3.83282214,193.87,193.84,2.71]
[1761461753761,4.54831861,193.9,193.84,2.71]
[1761461753959,8.38114075,193.89,193.84,2.71]
[1761461754153,8.38114075,193.88,193.84,2.71]
[1761461754352,3.83282214,193.87,193.84,2.71]
[1761461754653,4.54817069,193.9,193.84,2.71]
[1761461754851,8.38086821,193.89,193.84,2.71]
[1761461755053,8.38086821,193.88,193.84,2.71]
[1761461755252,4.6314718,193.91,193.9,4.641]
[1761461755453,2.7,194.1,193.94,2.64]
[1761461755659,2.7,194.08,193.99,2.64]
[1761461755960,4.54673066,194.07,194.01,2.64]
[1761461756150,2.7,194.08,194.04,2.64]
[1761461756855,2.7,194.08,194.07,1.49806157]
[1761461757061,0.89683787,194.21,194.12,1.49806157]
[1761461758459,0.89683787,194.21,194.15,1.49806157]
[1761461758662,16.33631152,194.21,194.16,5.08681478]
[1761461758856,0.89683787,194.21,194.17,5.08647107]
[1761461759057,0.18,194.2,194.15,1.49806157]
[1761461760361,0.18,194.2,194.18,1.49806157]
[1761461760565,0.18,194.2,194.08,2.64]
[1761461779674,0.18,194.2,194.11,2.33400268]
[1761461779872,0.18,194.2,194.12,2.86]
[1761461800303,6.32604011,194.2,194.12,2.86]
[1761461811401,6.32604011,194.21,194.12,2.86]
[1761461812299,6.32604011,194.23,194.12,2.86]
[1761461815510,4.81906423,194.2,194.12,2.86]
[1761461824422,4.81906423,194.21,194.12,2.86]
[1761461825013,4.81906423,194.23,194.13,4.79627903]
[1761461825214,4.81906423,194.22,194.14,2.71]
[1761461825523,4.81906423,194.21,194.14,2.71]
[1761461834127,4.81906423,194.22,194.15,2.68]
[1761461847025,4.81906423,194.23,194.15,2.68]
[1761461859736,4.81906423,194.22,194.15,2.68]
[1761461859942,4.81906423,194.23,194.15,2.68]
[1761461861442,4.81906423,194.22,194.15,2.68]
[1761461862141,6.31290848,194.22,194.12,7.38627903]
[1761461862344,1.49384425,194.19,194.13,2.59]
[1761461867757,6.31290848,194.2,194.13,2.59]
[1761461872259,1.49384425,194.17,194.1,2.59]
[1761461872564,6.31290848,194.17,194.1,2.59]
[1761461873056,4.81906423,194.17,194.1,2.59]
[1761461873356,6.31290848,194.19,194.1,2.59]
[1761461876865,1.49384425,194.19,194.1,2.59]
[1761461886175,1.49384425,194.16,194.1,2.59]
[1761461890177,4.81906423,194.19,194.1,2.59]
[1761461890973,2.33473306,194.18,194.1,2.59]
[1761461900177,4.81906423,194.19,194.1,2.59]
[1761461901478,7.15379729,194.19,194.1,2.59]
[1761461901783,2.33473306,194.19,194.1,2.59]
[1761461903375,2.33473306,194.19,194.11,2.74]
[1761461904384,7.15379729,194.19,194.11,2.74]
[1761461919903,7.15379729,194.19,194.11,4.79627903]
[1761461920104,7.15379729,194.19,194.12,2.79]
[1761461922108,4.81906423,194.18,194.1,2.79]
[1761461923105,4.36953723,194.17,194.1,2.79]
[1761461923308,4.36953723,194.16,194.1,2.79]
[1761461923608,4.36953723,194.15,194.1,2.79]
[1761461923802,4.36953723,194.14,194.1,2.79]
[1761461924006,4.36953723,194.13,194.1,2.79]
[1761461924206,4.36953723,194.16,194.1,2.79]
[1761461924412,4.36953723,194.15,194.1,2.79]
[1761461924608,4.36953723,194.14,194.1,2.79]
[1761461924903,4.36933196,194.13,194.1,2.79]
[1761461925205,4.36933196,194.16,194.1,2.79]
[1761461925408,4.36933196,194.15,194.1,2.79]
[1761461925607,4.36933196,194.14,194.1,2.79]
[1761461925809,4.36933196,194.13,194.1,2.79]
[1761461926010,4.36933196,194.16,194.1,2.79]
[1761461926210,4.36933196,194.15,194.1,2.79]
[1761461926403,4.36933196,194.14,194.1,2.79]
[1761461926603,4.36933196,194.13,194.1,2.79]
[1761461926904,4.36933196,194.16,194.1,2.79]
[1761461927103,4.36933196,194.15,194.1,2.79]
[1761461927307,4.36933196,194.14,194.1,2.79]
[1761461927507,4.81906423,194.17,194.1,2.79]
[1761461927508,4.36933196,194.13,194.1,2.79]
[1761461927708,4.81906423,194.17,194.1,2.79]
[1761461927709,4.36933196,194.12,194.1,2.79]
[1761461927901,4.36933196,194.11,194.1,2.79]
[1761461928105,2.33473306,194.15,194.1,2.79]
[1761461928312,4.36933196,194.14,194.1,2.79]
[1761461928605,4.36933196,194.13,194.1,2.79]
[1761461928810,4.36933196,194.12,194.1,2.79]
[1761461929011,2.33473306,194.15,194.1,2.79]
[1761461929210,4.41331486,194.14,194.1,2.79]
[1761461929412,4.41331486,194.13,194.1,2.79]
[1761461929609,4.41331486,194.12,194.1,2.79]
[1761461929810,2.33473306,194.15,194.1,2.79]
[1761461930011,4.41311678,194.14,194.1,2.79]
[1761461930312,4.41311678,194.13,194.1,2.79]
[1761461930612,4.41311678,194.12,194.1,2.79]
[1761461930814,4.41311678,194.14,194.1,2.79]
[1761461931112,4.41311678,194.13,194.1,2.79]
[1761461931311,4.41311678,194.12,194.1,2.79]
[1761461931515,4.41311678,194.14,194.1,2.79]
[1761461931709,4.41311678,194.13,194.09,2.79]
[1761461931911,4.41311678,194.12,194.09,2.79]
[1761461932115,4.41311678,194.11,194.09,2.79]
[1761461932413,4.41311678,194.14,194.09,2.79]
[1761461932615,4.41311678,194.13,194.09,2.79]
[1761461932816,4.41311678,194.12,194.09,2.79]
[1761461933015,4.41311678,194.11,194.09,2.79]
[1761461933315,4.41311678,194.14,194.09,2.79]
[1761461933515,4.41311678,194.13,194.09,2.79]
[1761461933712,4.41311678,194.12,194.09,2.79]
[1761461933912,4.41311678,194.11,194.09,2.79]
[1761461934214,4.41311678,194.14,194.09,2.79]
[1761461934419,4.41311678,194.13,194.09,2.79]
[1761461934715,4.41311678,194.12,194.09,2.79]
[1761461934915,4.41311678,194.11,194.09,2.79]
[1761461935118,4.41311678,194.1,194.09,2.79]
[1761461935332,4.41311678,194.14,194.09,2.79]
[1761461935623,4.41311678,194.13,194.09,2.79]
[1761461935918,4.41311678,194.12,194.09,2.79]
[1761461936119,4.41311678,194.11,194.09,2.79]
[1761461936323,4.41311678,194.14,194.09,2.79]
[1761461936510,4.41311678,194.13,194.09,2.79]
[1761461936714,4.41311678,194.12,194.09,2.79]
[1761461936914,4.41311678,194.11,194.09,2.79]
[1761461937113,4.41311678,194.14,194.09,2.79]
[1761461937317,4.41311678,194.13,194.09,2.79]
[1761461937516,4.41311678,194.12,194.09,2.79]
[1761461937716,4.41311678,194.11,194.09,2.79]
[1761461937921,4.41311678,194.14,194.09,2.79]
[1761461938115,4.41311678,194.13,194.09,2.79]
[1761461938317,4.41311678,194.12,194.09,2.79]
[1761461938517,4.41311678,194.11,194.09,2.79]
[1761461938719,4.41311678,194.14,194.09,2.79]
[1761461938918,4.41311678,194.13,194.09,2.79]
[1761461939120,4.41311678,194.12,194.09,2.79]
[1761461939319,4.41311678,194.11,194.09,2.79]
[1761461939519,4.41311678,194.14,194.09,2.79]
[1761461939726,4.41311678,194.13,194.09,2.79]
[1761461939921,4.41311678,194.12,194.09,2.79]
[1761461940121,4.41311678,194.11,194.09,2.79]
[1761461940324,4.41311678,194.14,194.09,2.79]
[1761461940625,4.41311678,194.13,194.09,2.79]
[1761461940823,4.41311678,194.12,194.09,2.79]
[1761461941024,4.41311678,194.14,194.09,2.79]
[1761461941224,4.41311678,194.13,194.09,2.79]
[1761461941420,4.41311678,194.12,194.09,2.79]
[1761461941622,4.41311678,194.14,194.09,2.79]
[1761461941822,4.41311678,194.13,194.09,2.79]
[1761461942036,4.41311678,194.12,194.09,2.79]
[1761461942327,4.41311678,194.14,194.09,2.79]
[1761461942528,2.33473306,194.15,194.09,2.79]
[1761461942529,4.41311678,194.13,194.09,2.79]
[1761461942734,4.41311678,194.12,194.09,2.79]
[1761461942917,4.41311678,194.14,194.09,2.79]
[1761461943123,4.41311678,194.13,194.09,2.79]
[1761461943323,4.41311678,194.12,194.09,2.79]
[1761461943524,4.41311678,194.14,194.09,2.79]
[1761461943725,4.41311678,194.13,194.09,2.79]
[1761461944023,4.41311678,194.12,194.09,2.79]
[1761461944223,2.33473306,194.15,194.06,2.65]
[1761461944224,6.74784984,194.11,194.06,2.65]
[1761461944427,4.41311678,194.1,194.03,2.65]
[1761461944629,4.41311678,194.09,194.03,2.65]
[1761461944829,4.41311678,194.08,194.03,2.65]
[1761461945027,4.41311678,194.1,194.03,2.65]
[1761461945231,4.41311678,194.09,194.03,2.65]
[1761461945435,4.41311678,194.1,194.03,2.65]
[1761461945637,4.41311678,194.09,194.03,2.65]
[1761461945934,4.41311678,194.1,194.03,2.65]
[1761461946129,4.41311678,194.09,194.03,2.65]
[1761461946324,4.41311678,194.1,194.03,2.65]
[1761461946530,4.41311678,194.09,194.03,2.65]
[1761461946734,4.41311678,194.1,194.03,2.65]
[1761461946939,4.41311678,194.09,194.03,2.65]
[1761461947124,4.41311678,194.1,194.03,2.65]
[1761461950249,6.74784984,194.11,194.03,2.65]
[1761461950643,4.41311678,194.11,194.03,2.65]
[1761461950848,1.49587198,194.08,194.03,2.65]
[1761461968461,5.90898876,194.11,194.03,2.65]
[1761461970261,10.72805299,194.11,194.03,2.65]
[1761461970463,4.41311678,194.1,194.03,2.65]
[1761461971165,1.49587198,194.11,194.03,2.65]
[1761461971356,5.90898876,194.11,194.03,2.65]
[1761461974159,4.41311678,194.1,194.03,2.65]
[1761461976756,6.31493621,194.11,194.03,2.65]
[1761461976757,1.49587198,194.08,194.03,2.65]
[1761461981281,5.90898876,194.08,194.03,2.65]
[1761461981568,1.49587198,194.08,194.03,2.65]
[1761461981767,5.90898876,194.08,194.03,2.65]
[1761461981969,1.49587198,194.08,194.03,2.65]
[1761461982163,5.90898876,194.08,194.03,2.65]
[1761461982468,1.49587198,194.08,194.03,2.65]
[1761461982667,5.90898876,194.08,194.03,2.65]
[1761461982868,1.49587198,194.08,194.03,2.65]
[1761461983070,5.90898876,194.08,194.03,2.65]
[1761461983268,1.49587198,194.08,194.03,2.65]
[1761461983570,5.90898876,194.08,194.03,2.65]
[1761461983771,1.49587198,194.08,194.03,2.65]
[1761461983972,5.90898876,194.08,194.03,2.65]
[1761461984267,1.49587198,194.08,194.03,2.65]
[1761461984468,5.90898876,194.08,194.03,2.65]
[1761461984674,1.49587198,194.08,194.03,2.65]
[1761461984969,5.90898876,194.08,194.03,2.65]
[1761461985272,1.49587198,194.08,194.03,2.65]
[1761461985471,5.90898876,194.08,194.03,2.65]
[1761461985768,1.49587198,194.08,194.03,2.65]
[1761461985970,5.90898876,194.08,194.03,2.65]
[1761461986165,1.49587198,194.08,194.03,2.65]
[1761461986367,5.90898876,194.08,194.03,2.65]
[1761461986567,1.49587198,194.08,194.03,2.65]
[1761461986760,5.90898876,194.08,194.03,2.65]
[1761461986963,1.49587198,194.08,194.03,2.65]
[1761461987164,5.90898876,194.08,194.03,2.65]
[1761461987460,4.41311678,194.07,194.03,2.65]
[1761461988266,4.41311678,194.06,194.03,2.65]
[1761461988574,4.41311678,194.07,194.03,2.65]
[1761461988873,4.41311678,194.06,194.03,2.65]
[1761461989169,4.41311678,194.07,194.03,2.65]
[1761461989473,4.41010504,194.06,194.03,2.65]
[1761461989663,1.49587198,194.08,194.03,2.65]
[1761461989866,4.41010504,194.07,194.03,2.65]
[1761461990068,4.41010504,194.06,194.03,2.65]
[1761461990274,1.49587198,194.08,194.03,2.65]
[1761461990572,4.41010691,194.07,194.03,2.65]
[1761461990773,4.41010691,194.06,194.03,2.65]
[1761461990963,1.49587198,194.08,194.03,2.65]
[1761461991168,4.41010691,194.07,194.03,2.65]
[1761461991371,4.41011093,194.06,194.03,2.65]
[1761461991679,4.41047409,194.05,194.03,2.65]
[1761461991867,4.41047409,194.07,194.03,2.65]
[1761461992064,4.41047409,194.06,194.03,2.65]
[1761461992367,4.41047409,194.05,194.03,2.65]
[1761461992567,4.41047409,194.07,194.03,2.65]
[1761461992772,4.41047409,194.06,194.03,2.65]
[1761461993075,1.49587198,194.08,194.03,2.65]
[1761461993269,4.41019706,194.07,194.03,2.65]
[1761461993468,4.41019706,194.06,194.03,2.65]
[1761461993665,1.49587198,194.08,194.03,2.65]
[1761461993865,4.41018227,194.07,194.03,2.65]
[1761461994069,4.41018227,194.06,194.03,2.65]
[1761461994271,1.49587198,194.08,194.03,2.65]
[1761461994466,4.41016919,194.07,194.03,2.65]
[1761461994671,4.41016919,194.06,194.03,2.65]
[1761461994877,1.49587198,194.08,194.03,2.65]
[1761461995176,4.41016919,194.07,194.03,2.65]
[1761461995366,4.41016919,194.06,194.03,2.65]
[1761461995566,1.49587198,194.08,194.03,2.65]
[1761461995776,4.41015779,194.07,194.03,2.65]